fUST/lending_fUST_20250825
["ID","MTS","AMOUNT","RATE_DAILY","PERIOD"]
[381288969,1756126897998,-480.0,0.00044657,120]
[381288970,1756126898044,-2209.87,0.00044657,120]
[381288971,1756126898090,-929.85,0.00044657,120]
[381288972,1756126898134,-480.0,0.00044657,120]
[381288973,1756126898178,-573.12,0.00044657,120]
[381288974,1756126898222,-920.67,0.00044657,120]
[381288975,1756126898267,-727.5,0.00044657,120]
[381288976,1756126898310,-465.82837163,0.00044657,120]
[381288977,1756126898354,-403.81186713,0.00044657,120]
[381288978,1756126898398,-480.0,0.00044657,120]
[381288979,1756126898440,-542.09,0.00044657,120]
[381288980,1756126898484,-960.62,0.00044657,120]
[381288981,1756126898527,-1161.07,0.00044657,120]
[381288982,1756126898573,-480.0,0.00044657,120]
[381288983,1756126898615,-480.0,0.00044657,120]
[381288984,1756126898660,-480.0,0.00044657,120]
[381288985,1756126898707,-1571.16,0.00044657,120]
[381288986,1756126898751,-956.49,0.00044657,120]
[381288987,1756126898795,-621.03,0.00044657,120]
[381288988,1756126898839,-669.29,0.00044657,120]
[381288989,1756126898882,-1188.59,0.00044657,120]
[381288990,1756126898926,-1297.99,0.00044657,120]
[381288991,1756126898972,-774.78,0.00044657,120]
[381288992,1756126899018,-881.29,0.00044657,120]
[381288993,1756126899062,-505.82,0.00044657,120]
[381288994,1756126899105,-480.0,0.00044657,120]
[381288995,1756126899148,-1413.93,0.00044657,120]
[381288996,1756126899192,-150.06731931,0.00044657,120]
[381288997,1756126899236,-743.01,0.00044657,120]
[381288998,1756126899279,-549.23,0.00044657,120]
[381288999,1756126899323,-480.0,0.00044657,120]
[381289000,1756126899366,-605.34,0.00044657,120]
[381289001,1756126899408,-1149.42,0.00044657,120]
[381289002,1756126899452,-480.0,0.00044657,120]
[381289003,1756126899493,-1277.61,0.00044657,120]
[381289004,1756126899535,-1439.88,0.00044657,120]
[381289005,1756126899574,-878.22,0.00044657,120]
[381289006,1756126899615,-822.59,0.00044657,120]
[381289007,1756126899656,-480.0,0.00044657,120]
[381289008,1756126899696,-1045.63,0.00044657,120]
[381289009,1756126899741,-563.53,0.00044657,120]
[381289010,1756126899787,-491.9,0.00044657,120]
[381289011,1756126899829,-1412.42,0.00044657,120]
[381289012,1756126899870,-1742.12,0.00044657,120]
[381289013,1756126899912,-3909.96,0.00044657,120]
[381289014,1756126899954,-688.96,0.00044657,120]
[381289015,1756126899999,-550.64,0.00044657,120]
[381289016,1756126900046,-628.26,0.00044657,120]
[381289017,1756126900090,-480.0,0.00044657,120]
[381289018,1756126900132,-506.78,0.00044657,120]
[381289019,1756126900178,-1206.33,0.00044657,120]
[381289020,1756126900220,-1727.87,0.00044657,120]
[381289021,1756126900262,-480.0,0.00044657,120]
[381289022,1756126900303,-480.0,0.00044657,120]
[381289023,1756126900344,-480.0,0.00044657,120]
[381289024,1756126900385,-480.0,0.00044657,120]
[381289025,1756126900425,-480.0,0.00044657,120]
[381289026,1756126900467,-527.55,0.00044657,120]
[381289027,1756126900508,-480.0,0.00044657,120]
[381289028,1756126900548,-1790.75,0.00044657,120]
[381289029,1756126900588,-1248.92,0.00044657,120]
[381289030,1756126900629,-480.0,0.00044657,120]
[381289031,1756126900669,-692.37,0.00044657,120]
[381289032,1756126900710,-836.57,0.00044657,120]
[381289033,1756126900752,-4667.32,0.00044657,120]
[381289034,1756126900795,-557.41,0.00044657,120]
[381289035,1756126900838,-1221.05,0.00044657,120]
[381289036,1756126900881,-755.37,0.00044657,120]
[381289037,1756126900924,-480.0,0.00044657,120]
[381289038,1756126900966,-986.08,0.00044657,120]
[381289039,1756126901015,-747.3,0.00044657,120]
[381289040,1756126901056,-3173.1,0.00044657,120]
[381289041,1756126901098,-620.02,0.00044657,120]
[381289042,1756126901140,-1130.37,0.00044657,120]
[381289043,1756126901181,-480.0,0.00044657,120]
[381289044,1756126901222,-569.35,0.00044657,120]
[381289045,1756126901265,-727.52,0.00044657,120]
[381289046,1756126901306,-825.61,0.00044657,120]
[381289047,1756126901346,-2292.16,0.00044657,120]
[381289048,1756126901388,-480.0,0.00044657,120]
[381289049,1756126901429,-669.15,0.00044657,120]
[381289050,1756126901471,-2069.49,0.00044657,120]
[381289051,1756126901512,-480.0,0.00044657,120]
[381289052,1756126901699,-1273.34,0.00044657,120]
[381289053,1756126901741,-711.39,0.00044657,120]
[381289054,1756126901784,-1403.13,0.00044657,120]
[381289055,1756126901830,-2829.89,0.00044657,120]
[381289056,1756126901877,-914.55,0.00044657,120]
[381289057,1756126901920,-480.0,0.00044657,120]
[381289058,1756126901963,-624.32,0.00044657,120]
[381289059,1756126902012,-1073.69,0.00044657,120]
[381289060,1756126902066,-480.0,0.00044657,120]
[381289061,1756126902112,-732.1,0.00044657,120]
[381289062,1756126902157,-1658.57,0.00044657,120]
[381289063,1756126902201,-663.97,0.00044657,120]
[381289064,1756126902247,-997.45,0.00044657,120]
[381289065,1756126902290,-4726.93,0.00044657,120]
[381289066,1756126902334,-480.0,0.00044657,120]
[381289067,1756126902388,-2182.29,0.00044657,120]
[381289068,1756126902432,-487.94,0.00044657,120]
[381289069,1756126902475,-896.66,0.00044657,120]
[381289070,1756126902517,-847.75,0.00044657,120]
[381289071,1756126902559,-654.73,0.00044657,120]
[381289072,1756126902599,-1036.77,0.00044657,120]
[381289073,1756126902640,-480.0,0.00044657,120]
[381289074,1756126902684,-37374.97,0.00044657,120]
[381289075,1756126902726,-490.9,0.00044657,120]
[381289076,1756126902769,-5909.94,0.00044657,120]
[381289077,1756126902813,-1676.25,0.00044657,120]
[381289078,1756126902855,-480.0,0.00044657,120]
[381289079,1756126902897,-480.0,0.00044657,120]
[381289080,1756126902939,-480.0,0.00044657,120]
[381289081,1756126902982,-480.0,0.00044657,120]
[381289082,1756126903025,-1637.12,0.00044657,120]
[381289083,1756126903068,-479.88366557,0.00044657,120]
[381289084,1756126903110,-1896.62,0.00044657,120]
[381289085,1756126903153,-1185.69,0.00044657,120]
[381289086,1756126903197,-1152.59,0.00044657,120]
[381289087,1756126903239,-1070.09,0.00044657,120]
[381289088,1756126903281,-784.62,0.00044657,120]
[381289089,1756126903325,-509.48,0.00044657,120]
[381289090,1756126903368,-527.03,0.00044657,120]
[381289091,1756126903410,-480.0,0.00044657,120]
[381289092,1756126903453,-1022.88,0.00044657,120]
[381289093,1756126903496,-862.48,0.00044657,120]
[381289094,1756126903540,-771.76,0.00044657,120]
[381289095,1756126903582,-604.83,0.00044657,120]
[381289096,1756126903625,-1446.12,0.00044657,120]
[381289097,1756126903669,-614.96,0.00044657,120]
[381289098,1756126903712,-863.05,0.00044657,120]
[381289099,1756126903756,-815.47,0.00044657,120]
[381289100,1756126903801,-766.09,0.00044657,120]
[381289101,1756126903845,-1720.85,0.00044657,120]
[381289102,1756126903889,-1405.89,0.00044657,120]
[381289103,1756126903933,-2204.55,0.00044657,120]
[381289104,1756126903979,-569.27127805,0.00044657,120]
[381289105,1756126904025,-631.79,0.00044657,120]
[381289106,1756126904071,-480.0,0.00044657,120]
[381289107,1756126904113,-1286.07,0.00044657,120]
[381289108,1756126904158,-480.0,0.00044657,120]
[381289109,1756126904201,-3309.78,0.00044657,120]
[381289110,1756126904244,-480.0,0.00044657,120]
[381289111,1756126904289,-8939.69,0.00044657,120]
[381289112,1756126904334,-782.03,0.00044657,120]
[381289113,1756126904378,-1045.84,0.00044657,120]
[381289114,1756126904420,-4901.35,0.00044657,120]
[381289115,1756126904463,-480.0,0.00044657,120]
[381289116,1756126904505,-3746.72,0.00044657,120]
[381289117,1756126904546,-1364.71,0.00044657,120]
[381289118,1756126904586,-2336.61,0.00044657,120]
[381289119,1756126904627,-480.0,0.00044657,120]
[381289120,1756126904667,-2298.35,0.00044657,120]
[381289121,1756126904706,-692.84,0.00044657,120]
[381289122,1756126904749,-480.0,0.00044657,120]
[381289123,1756126904792,-480.0,0.00044657,120]
[381289124,1756126904833,-748.2,0.00044657,120]
[381289125,1756126904875,-480.0,0.00044657,120]
[381289126,1756126904917,-480.0,0.00044657,120]
[381289127,1756126904959,-1497.52,0.00044657,120]
[381289128,1756126905003,-627.58,0.00044657,120]
[381289129,1756126905047,-395.53664795,0.00044657,120]
[381289130,1756126905091,-2186.25,0.00044657,120]
[381289131,1756126905132,-1589.2,0.00044657,120]
[381289132,1756126905174,-3124.04,0.00044657,120]
[381289133,1756126905362,-865.69,0.00044657,120]
[381289134,1756126905402,-480.0,0.00044657,120]
[381289135,1756126905443,-668.63,0.00044657,120]
[381289136,1756126905483,-1700.64,0.00044657,120]
[381289137,1756126905523,-1853.9,0.00044657,120]
[381289138,1756126905565,-1233.38,0.00044657,120]
[381289139,1756126905607,-480.0,0.00044657,120]
[381289140,1756126905648,-843.91,0.00044657,120]
[381289141,1756126905690,-820.84,0.00044657,120]
[381289142,1756126905731,-480.0,0.00044657,120]
[381289143,1756126905772,-509.16,0.00044657,120]
[381289144,1756126905814,-3188.54,0.00044657,120]
[381289145,1756126905857,-687.95,0.00044657,120]
[381289146,1756126905900,-1293.99,0.00044657,120]
[381289147,1756126905943,-1335.79,0.00044657,120]
[381289148,1756126905988,-480.0,0.00044657,120]
[381289149,1756126906032,-480.0,0.00044657,120]
[381289150,1756126906076,-1304.07,0.00044657,120]
[381289151,1756126906118,-480.0,0.00044657,120]
[381289152,1756126906160,-3079.65,0.00044657,120]
[381289153,1756126906202,-1864.32,0.00044657,120]
[381289154,1756126906243,-536.76,0.00044657,120]
[381289155,1756126906285,-683.57,0.00044657,120]
[381289156,1756126906332,-480.0,0.00044657,120]
[381289157,1756126906376,-1315.65,0.00044657,120]
[381289158,1756126906417,-2414.52,0.00044657,120]
[381289159,1756126906459,-1292.83,0.00044657,120]
[381289160,1756126906501,-480.0,0.00044657,120]
[381289161,1756126906544,-597.75,0.00044657,120]
[381289162,1756126906586,-903.95,0.00044657,120]
[381289163,1756126906633,-1960.81,0.00044657,120]
[381289164,1756126906678,-480.0,0.00044657,120]
[381289165,1756126906723,-755.2,0.00044657,120]
[381289166,1756126906767,-1000.0,0.00044657,120]
[381289167,1756126906811,-905.54,0.00044657,120]
[381289168,1756126906857,-19614.7,0.00044657,120]
[381289169,1756126906901,-356.95745659,0.00044657,120]
[381289170,1756126906945,-920.94,0.00044657,120]
[381289171,1756126906992,-25474.36,0.00044657,120]
[381289172,1756126907055,-682.89,0.00044657,120]
[381289173,1756126907126,-1803.64,0.00044657,120]
[381289174,1756126907193,-517.61,0.00044657,120]
[381289175,1756126907254,-4080.09,0.00044657,120]
[381289176,1756126907317,-965.82,0.00044657,120]
[381289177,1756126907382,-480.0,0.00044657,120]
[381289178,1756126907438,-3213.62,0.00044657,120]
[381289179,1756126907496,-1010.84,0.00044657,120]
[381289180,1756126907554,-594.53,0.00044657,120]
[381289181,1756126907608,-1632.43,0.00044657,120]
[381289182,1756126907663,-537.64,0.00044657,120]
[381289183,1756126907720,-5997.75,0.00044657,120]
[381289184,1756126907774,-966.7,0.00044657,120]
[381289185,1756126907829,-527.05,0.00044657,120]
[381289186,1756126907885,-640.67,0.00044657,120]
[381289187,1756126907941,-3476.32,0.00044657,120]
[381289188,1756126907997,-480.0,0.00044657,120]
[381289189,1756126908057,-659.23,0.00044657,120]
[381289190,1756126908116,-604.56,0.00044657,120]
[381289191,1756126908177,-480.0,0.00044657,120]
[381289192,1756126908242,-673.78,0.00044657,120]
[381289193,1756126908300,-480.0,0.00044657,120]
[381289194,1756126908360,-1408.09,0.00044657,120]
[381289195,1756126908419,-725.22,0.00044657,120]
[381289196,1756126908476,-594.97,0.00044657,120]
[381289197,1756126908534,-758.37,0.00044657,120]
[381289198,1756126908585,-1332.47,0.00044657,120]
[381289199,1756126908626,-480.0,0.00044657,120]
[381289200,1756126908669,-480.0,0.00044657,120]
[381289201,1756126908711,-492.09,0.00044657,120]
[381289202,1756126908754,-5609.95,0.00044657,120]
[381289203,1756126908797,-491.39,0.00044657,120]
[381289204,1756126908840,-750.67,0.00044657,120]
[381289205,1756126908884,-626.84,0.00044657,120]
[381289206,1756126908926,-480.0,0.00044657,120]
[381289207,1756126908968,-1629.79,0.00044657,120]
[381289208,1756126909021,-827.22,0.00044657,120]
[381289209,1756126909069,-9745.05,0.00044657,120]
[381289210,1756126909470,-3207.29,0.00044657,120]
[381289211,1756126909559,-1678.54,0.00044657,120]
[381289212,1756126909600,-733.03,0.00044657,120]
[381289213,1756126909641,-480.0,0.00044657,120]
[381289214,1756126909683,-561.22,0.00044657,120]
[381289215,1756126909730,-4998.35,0.00044657,120]
[381289216,1756126909773,-480.0,0.00044657,120]
[381289217,1756126909816,-15401.82,0.00044657,120]
[381289218,1756126909859,-1149.92,0.00044657,120]
[381289219,1756126909902,-598.38,0.00044657,120]
[381289220,1756126909943,-7304.26,0.00044657,120]
[381289221,1756126909986,-1274.15,0.00044657,120]
[381289222,1756126910027,-480.0,0.00044657,120]
[381289223,1756126910067,-770.82,0.00044657,120]
[381289224,1756126910107,-481.54,0.00044657,120]
[381289225,1756126910150,-1375.84,0.00044657,120]
[381289226,1756126910192,-775.25,0.00044657,120]
[381289227,1756126910235,-11767.25,0.00044657,120]
[381289228,1756126910275,-480.0,0.00044657,120]
[381289229,1756126910315,-1309.42,0.00044657,120]
[381289230,1756126910356,-1975.28,0.00044657,120]
[381289231,1756126910397,-1147.44,0.00044657,120]
[381289232,1756126910436,-955.26,0.00044657,120]
[381289233,1756126910475,-480.0,0.00044657,120]
[381289234,1756126910514,-9545.23,0.00044657,120]
[381289235,1756126910554,-953.58,0.00044657,120]
[381289236,1756126910594,-480.0,0.00044657,120]
[381289237,1756126910637,-1257.15,0.00044657,120]
[381289238,1756126910679,-1137.32,0.00044657,120]
[381289239,1756126910720,-1015.19,0.00044657,120]
[381289240,1756126910762,-962.42,0.00044657,120]
[381289241,1756126910804,-480.0,0.00044657,120]
[381289242,1756126910847,-751.4,0.00044657,120]
[381289243,1756126910889,-3650.06,0.00044657,120]
[381289244,1756126910933,-480.0,0.00044657,120]
[381289245,1756126910978,-480.0,0.00044657,120]
[381289246,1756126911023,-480.0,0.00044657,120]
[381289247,1756126911065,-2088.99,0.00044657,120]
[381289248,1756126911108,-480.0,0.00044657,120]
[381289249,1756126911150,-555.81,0.00044657,120]
[381289250,1756126911194,-1601.92,0.00044657,120]
[381289251,1756126911235,-480.0,0.00044657,120]
[381289252,1756126911276,-480.0,0.00044657,120]
[381289253,1756126911320,-3802.35,0.00044657,120]
[381289254,1756126911364,-480.0,0.00044657,120]
[381289255,1756126911406,-480.0,0.00044657,120]
[381289256,1756126911447,-885.47,0.00044657,120]
[381289257,1756126911487,-480.0,0.00044657,120]
[381289258,1756126911527,-1575.16,0.00044657,120]
[381289259,1756126911569,-498.97,0.00044657,120]
[381289260,1756126911615,-1216.81,0.00044657,120]
[381289261,1756126911659,-480.0,0.00044657,120]
[381289262,1756126911703,-1333.13,0.00044657,120]
[381289263,1756126911748,-589.58,0.00044657,120]
[381289264,1756126911792,-539.63,0.00044657,120]
[381289265,1756126911836,-1232.99,0.00044657,120]
[381289266,1756126911878,-946.1,0.00044657,120]
[381289267,1756126911919,-4780.9,0.00044657,120]
[381289268,1756126911959,-1030.64,0.00044657,120]
[381289269,1756126912002,-2338.36,0.00044657,120]
[381289270,1756126912044,-15112.0,0.00044657,120]
[381289271,1756126912086,-1727.97,0.00044657,120]
[381289272,1756126912127,-480.0,0.00044657,120]
[381289273,1756126912168,-1347.42,0.00044657,120]
[381289274,1756126912212,-577.89,0.00044657,120]
[381289275,1756126912254,-480.0,0.00044657,120]
[381289276,1756126912296,-301.4,0.00044657,120]
[381289277,1756126912340,-1041.93,0.00044657,120]
[381289278,1756126912387,-5529.63,0.00044657,120]
[381289279,1756126912431,-480.0,0.00044657,120]
[381289280,1756126912475,-3398.84,0.00044657,120]
[381289281,1756126912516,-933.93,0.00044657,120]
[381289282,1756126912559,-487.78,0.00044657,120]
[381289283,1756126912601,-32087.34,0.00044657,120]
[381289284,1756126912643,-1750.21,0.00044657,120]
[381289285,1756126912684,-606.0,0.00044657,120]
[381289286,1756126912724,-484.33,0.00044657,120]
[381289287,1756126912765,-646.24,0.00044657,120]
[381289288,1756126912806,-480.0,0.00044657,120]
[381289289,1756126912848,-5532.51,0.00044657,120]
[381289290,1756126912888,-1105.24,0.00044657,120]
[381289291,1756126912928,-2082.95,0.00044657,120]
[381289292,1756126912969,-492.52,0.00044657,120]
[381289293,1756126913015,-1012.97,0.00044657,120]
[381289294,1756126913059,-480.0,0.00044657,120]
[381289295,1756126913253,-759.39,0.00044657,120]
[381289296,1756126913296,-515.04,0.00044657,120]
[381289297,1756126913336,-1098.76,0.00044657,120]
[381289298,1756126913374,-641.0,0.00044657,120]
[381289299,1756126913412,-991.36,0.00044657,60]
[381289300,1756126913451,-1160.57,0.00044657,120]
[381289301,1756126913488,-4721.68,0.00044657,120]
[381289302,1756126913526,-5758.69,0.00044657,120]
[381289303,1756126913565,-2222.09,0.00044657,120]
[381289304,1756126913607,-2880.2,0.00044657,120]
[381289305,1756126913647,-480.0,0.00044657,120]
[381289306,1756126913688,-480.0,0.00044657,120]
[381289307,1756126913728,-722.84,0.00044657,120]
[381289308,1756126913768,-480.0,0.00044657,120]
[381289309,1756126913810,-519.53,0.00044657,120]
[381289310,1756126913855,-1837.05,0.00044657,120]
[381289311,1756126913902,-754.08,0.00044657,120]
[381289312,1756126913945,-537.85,0.00044657,120]
[381289313,1756126913990,-152.479012,0.00044675,90]
[381289314,1756126914033,-200.0,0.00044788,120]
[381289315,1756126914080,-152.479012,0.000449,90]
[381289316,1756126914122,-480.0,0.00044931,120]
[381289317,1756126914165,-345.65968298,0.00044931,120]
[381289318,1756126914207,-480.0,0.00044931,120]
[381289319,1756126914249,-480.0,0.00044931,120]
[381289320,1756126914288,-480.0,0.00044931,120]
[381289321,1756126914329,-699.42,0.00044931,120]
[381289322,1756126914369,-498.32,0.00044931,120]
[381289323,1756126914409,-747.73,0.00044931,120]
[381289324,1756126914448,-191.70131697,0.00044931,120]
[381289325,1756126914487,-607.22,0.00044931,120]
[381289326,1756126914526,-845.88,0.00044931,120]
[381289327,1756126914564,-894.54,0.00044931,120]
[381289328,1756126914604,-503.39,0.00044931,120]
[381289329,1756126914643,-628.10381678,0.00044931,120]
[381289330,1756126914682,-759.54,0.00044931,120]
[381289331,1756126914721,-660.27,0.00044931,120]
[381289332,1756126914759,-480.0,0.00044931,120]
[381289333,1756126914800,-671.3,0.00044931,120]
[381289334,1756126914843,-740.62,0.00044931,120]
[381289335,1756126914885,-1353.62,0.00044931,120]
[381289336,1756126914928,-912.48,0.00044931,120]
[381289337,1756126914980,-878.72,0.00044931,120]
[381289338,1756126915024,-431.22836247,0.00044931,120]
[381289339,1756126915067,-1189.95,0.00044931,120]
[381289340,1756126915108,-480.0,0.00044931,120]
[381289341,1756126915148,-936.4,0.00044931,120]
[381289342,1756126915188,-1118.38,0.00044931,120]
[381289343,1756126915230,-1113.23,0.00044931,120]
[381289344,1756126915271,-825.51,0.00044931,120]
[381289345,1756126915311,-1185.16,0.00044931,120]
[381289346,1756126915350,-589.51,0.00044931,120]
[381289347,1756126915390,-556.17,0.00044931,120]
[381289348,1756126915428,-458.56003753,0.00044931,120]
[381289349,1756126915466,-884.3,0.00044931,120]
[381289350,1756126915505,-686.06,0.00044931,120]
[381289351,1756126915542,-480.0,0.00044931,120]
[381289352,1756126915582,-495.13,0.00044931,120]
[381289353,1756126915620,-610.93,0.00044931,120]
[381289354,1756126915658,-482.36,0.00044931,120]
[381289355,1756126915696,-480.0,0.00044931,120]
[381289356,1756126915735,-850.54,0.00044931,120]
[381289357,1756126915777,-715.89,0.00044931,120]
[381289358,1756126915824,-1606.61,0.00044931,120]
[381289359,1756126915868,-1684.16,0.00044931,120]
[381289360,1756126915910,-547.94,0.00044931,120]
[381289361,1756126915950,-593.25,0.00044931,120]
[381289362,1756126915990,-689.16,0.00044931,120]
[381289363,1756126916032,-480.0,0.00044931,120]
[381289364,1756126916076,-579.51,0.00044931,120]
[381289365,1756126916119,-480.0,0.00044931,120]
[381289366,1756126916161,-480.0,0.00044931,120]
[381289367,1756126916203,-1931.57,0.00044931,120]
[381289368,1756126916244,-1239.72,0.00044931,120]
[381289369,1756126916285,-480.0,0.00044931,120]
[381289370,1756126916329,-2209.87,0.00044931,120]
[381289371,1756126916371,-929.85,0.00044931,120]
[381289372,1756126916413,-531.32174224,0.00044931,120]
[381289373,1756126916455,-573.12,0.00044931,120]
[381289374,1756126916496,-920.67,0.00044931,120]
[381289375,1756126916535,-727.5,0.00044931,120]
[381289376,1756126916575,-480.0,0.00044931,120]
[381289377,1756126916614,-542.09,0.00044931,120]
[381289378,1756126916652,-960.62,0.00044931,120]
[381289379,1756126916691,-1161.07,0.00044931,120]
[381289380,1756126916728,-480.0,0.00044931,120]
[381289381,1756126916766,-480.0,0.00044931,120]
[381289382,1756126916806,-480.0,0.00044931,120]
[381289383,1756126916850,-1571.16,0.00044931,120]
[381289384,1756126916893,-956.49,0.00044931,120]
[381289385,1756126916936,-621.03,0.00044931,120]
[381289386,1756126916981,-669.29,0.00044931,120]
[381289387,1756126917025,-1188.59,0.00044931,120]
[381289388,1756126917068,-1297.99,0.00044931,120]
[381289389,1756126917110,-774.78,0.00044931,120]
[381289390,1756126917149,-881.29,0.00044931,120]
[381289391,1756126917190,-505.82,0.00044931,120]
[381289392,1756126917228,-1413.93,0.00044931,120]
[381289393,1756126917267,-743.01,0.00044931,120]
[381289394,1756126917305,-549.23,0.00044931,120]
[381289395,1756126917343,-480.0,0.00044931,120]
[381289396,1756126917384,-605.34,0.00044931,120]
[381289397,1756126917426,-1149.42,0.00044931,120]
[381289398,1756126917467,-609.23554602,0.00044931,120]
[381289399,1756126917668,-1277.61,0.00044931,120]
[381289400,1756126917710,-1439.88,0.00044931,120]
[381289401,1756126917754,-878.22,0.00044931,120]
[381289402,1756126917798,-822.59,0.00044931,120]
[381289403,1756126917841,-480.0,0.00044931,120]
[381289404,1756126917883,-1045.63,0.00044931,120]
[381289405,1756126917924,-563.53,0.00044931,120]
[381289406,1756126917965,-1412.42,0.00044931,120]
[381289407,1756126918006,-1742.12,0.00044931,120]
[381289408,1756126918050,-3909.96,0.00044931,120]
[381289409,1756126918090,-688.96,0.00044931,120]
[381289410,1756126918130,-550.64,0.00044931,120]
[381289411,1756126918170,-628.26,0.00044931,120]
[381289412,1756126918209,-480.0,0.00044931,120]
[381289413,1756126918249,-506.78,0.00044931,120]
[381289414,1756126918289,-1206.33,0.00044931,120]
[381289415,1756126918330,-1727.87,0.00044931,120]
[381289416,1756126918368,-480.0,0.00044931,120]
[381289417,1756126918407,-480.0,0.00044931,120]
[381289418,1756126918445,-480.0,0.00044931,120]
[381289419,1756126918483,-253.07683112,0.00044931,120]
[381289420,1756126918521,-480.0,0.00044931,120]
[381289421,1756126918557,-527.55,0.00044931,120]
[381289422,1756126918595,-366.95353674,0.00044931,120]
[381289423,1756126918632,-1790.75,0.00044931,120]
[381289424,1756126918670,-1248.92,0.00044931,120]
[381289425,1756126918707,-480.0,0.00044931,120]
[381289426,1756126918745,-692.37,0.00044931,120]
[381289427,1756126918784,-836.57,0.00044931,120]
[381289428,1756126918825,-4667.32,0.00044931,120]
[381289429,1756126918866,-557.41,0.00044931,120]
[381289430,1756126918905,-1221.05,0.00044931,120]
[381289431,1756126918944,-755.37,0.00044931,120]
[381289432,1756126918986,-480.0,0.00044931,120]
[381289433,1756126919030,-986.08,0.00044931,120]
[381289434,1756126919073,-747.3,0.00044931,120]
[381289435,1756126919115,-3173.1,0.00044931,120]
[381289436,1756126919155,-620.02,0.00044931,120]
[381289437,1756126919198,-480.0,0.00044931,120]
[381289438,1756126919241,-569.35,0.00044931,120]
[381289439,1756126919281,-727.52,0.00044931,120]
[381289440,1756126919321,-825.61,0.00044931,120]
[381289441,1756126919360,-2292.16,0.00044931,120]
[381289442,1756126919401,-1130.37,0.00044931,120]
[381289443,1756126919438,-480.0,0.00044931,120]
[381289444,1756126919477,-669.15,0.00044931,120]
[381289445,1756126919516,-2069.49,0.00044931,120]
[381289446,1756126919555,-189.26021825,0.00044931,120]
[381289447,1756126919596,-1273.34,0.00044931,120]
[381289448,1756126919637,-711.39,0.00044931,120]
[381289449,1756126919677,-2829.89,0.00044931,120]
[381289450,1756126919717,-1403.13,0.00044931,120]
[381289451,1756126919756,-914.55,0.00044931,120]
[381289452,1756126919796,-480.0,0.00044931,120]
[381289453,1756126919837,-624.32,0.00044931,120]
[381289454,1756126919879,-1073.69,0.00044931,120]
[381289455,1756126919920,-480.0,0.00044931,120]
[381289456,1756126919959,-732.1,0.00044931,120]
[381289457,1756126920002,-389.27503799,0.00044931,120]
[381289458,1756126941511,-1241.62095827,0.00041643,61]
[381289459,1756126941749,-480.0,0.00043835,120]
[381289460,1756126941789,-480.0,0.00043835,120]
[381289461,1756126941828,-922.87,0.00043835,120]
[381289462,1756126941868,-155.76169786,0.00043835,120]
[381289463,1756126941905,-3286.24,0.00043835,120]
[381289464,1756126941942,-1742.33,0.00043835,120]
[381289465,1756126941985,-699.69,0.00043835,120]
[381289466,1756126942024,-480.0,0.00043835,120]
[381289467,1756126942063,-3554.1,0.00043835,120]
[381289468,1756126942102,-1900.11,0.00043835,120]